fUST/lending_fUST_20240828
["ID","MTS","AMOUNT","RATE_DAILY","PERIOD"]
[336452657,1724832649639,-500.0,0.00013424,2]
[336452658,1724832649648,-500.0,0.00013424,2]
[336452659,1724832649658,-506.61,0.00013424,2]
[336452660,1724832649668,-1419.74,0.00013424,2]
[336452661,1724832649678,-500.0,0.00013424,2]
[336452662,1724832649688,-500.0,0.00013424,2]
[336452663,1724832649698,-847.13,0.00013424,2]
[336452664,1724832649710,-2536.43,0.00013424,2]
[336452665,1724832649720,-826.86,0.00013424,2]
[336452666,1724832649730,-2039.59,0.00013424,2]
[336452667,1724832649739,-500.0,0.00013424,2]
[336452668,1724832649749,-500.0,0.00013424,2]
[336452669,1724832649759,-500.0,0.00013697,2]
[336452670,1724832649771,-558.09017639,0.00013698,2]
[336452671,1724832649782,-232.66118579,0.00013698,2]
[336452672,1724832649791,-500.0,0.00013698,2]
[336452673,1724832649801,-500.0,0.00013698,2]
[336452674,1724832649814,-500.0,0.00013698,2]
[336452675,1724832649823,-500.0,0.00013698,2]
[336452676,1724832649832,-500.0,0.00013698,2]
[336452677,1724832649841,-500.0,0.00013698,2]
[336452678,1724832649854,-500.0,0.00013698,2]
[336452679,1724832649865,-500.0,0.00013698,2]
[336452680,1724832649874,-443.23156191,0.00013698,2]
[336452681,1724832649883,-573.7119306,0.00013698,2]
[336452682,1724832649895,-500.0,0.00013698,2]
[336452683,1724832649906,-500.0,0.00013698,2]
[336452684,1724832649916,-500.0,0.00013698,2]
[336452685,1724832649925,-500.0,0.00013698,2]
[336452686,1724832649935,-500.0,0.00013698,2]
[336452687,1724832649945,-500.0,0.00013698,2]
[336452688,1724832649955,-500.0,0.00013698,2]
[336452689,1724832649967,-500.0,0.00013698,2]
[336452690,1724832649976,-500.0,0.00013698,2]
[336452691,1724832649987,-500.0,0.00013698,2]
[336452692,1724832649997,-500.0,0.00013698,2]
[336452693,1724832650007,-155.42437107,0.00013698,2]
[336452694,1724832650018,-618.32532387,0.00013698,2]
[336452695,1724832650028,-500.0,0.00013698,2]
[336452696,1724832650037,-500.0,0.00013698,2]
[336452697,1724832650046,-500.0,0.00013698,2]
[336452698,1724832650056,-500.0,0.00013698,2]
[336452699,1724832650067,-500.0,0.00013698,2]
[336452700,1724832650078,-500.0,0.00013698,2]
[336452701,1724832650087,-500.0,0.00013698,2]
[336452702,1724832650097,-500.0,0.00013698,2]
[336452703,1724832650106,-372.19351892,0.00013698,2]
[336452704,1724832650116,-544.38552321,0.00013698,2]
[336452705,1724832650125,-500.0,0.00013698,2]
[336452706,1724832650135,-500.0,0.00013698,2]
[336452707,1724832650145,-181.6367343,0.00013698,2]
[336452708,1724832650154,-1064.89767104,0.00013698,2]
[336452709,1724832650165,-1064.89767104,0.00013698,2]
[336452710,1724832650176,-1064.89767104,0.00013698,2]
[336452711,1724832650185,-1064.89767104,0.00013698,2]
[336452712,1724832650196,-1064.89767104,0.00013698,2]
[336452713,1724832650208,-1064.89767104,0.00013698,2]
[336452714,1724832650218,-1064.89767104,0.00013698,2]
[336452715,1724832650228,-1064.89767104,0.00013698,2]
[336452716,1724832650237,-1064.89767104,0.00013698,2]
[336452717,1724832650246,-1064.89767104,0.00013698,2]
[336452718,1724832650255,-1064.89767104,0.00013698,2]
[336452719,1724832650265,-1064.89767104,0.00013698,2]
[336452720,1724832650274,-547.51,0.00013698,2]
[336452721,1724832650285,-469.36402559,0.00013698,2]
[336452722,1724832650296,-500.0,0.00013698,2]
[336452723,1724832650307,-1114.59,0.00013698,2]
[336452724,1724832650316,-500.0,0.00013698,2]
[336452725,1724832650326,-500.0,0.00013698,2]
[336452726,1724832650337,-2211.21,0.00013698,2]
[336452727,1724832650347,-806.41,0.00013698,2]
[336452728,1724832650461,-812.71,0.00013698,2]
[336452729,1724832650473,-5829.57,0.00013698,2]
[336452730,1724832650483,-500.0,0.00013698,2]
[336452731,1724832650494,-534.72,0.00013698,2]
[336452732,1724832650503,-500.0,0.00013698,2]
[336452733,1724832650514,-500.0,0.00013698,2]
[336452734,1724832650523,-500.0,0.00013698,2]
[336452735,1724832650533,-500.0,0.00013698,2]
[336452736,1724832650543,-506.61,0.00013698,2]
[336452737,1724832650553,-1419.74,0.00013698,2]
[336452738,1724832650563,-500.0,0.00013698,2]
[336452739,1724832650575,-500.0,0.00013698,2]
[336452740,1724832650585,-847.13,0.00013698,2]
[336452741,1724832650595,-2536.43,0.00013698,2]
[336452742,1724832650605,-826.86,0.00013698,2]
[336452743,1724832650615,-2039.59,0.00013698,2]
[336452744,1724832650626,-500.0,0.00013698,2]
[336452745,1724832650635,-500.0,0.00013698,2]
[336452746,1724832650645,-500.0,0.00013698,2]
[336452747,1724832650654,-3085.941213,0.00013699,2]
[336452748,1724832650664,-30133.1611852,0.00013699,2]
[336452749,1724832650674,-1117.667495,0.00013699,2]
[336452750,1724832650684,-3000.0,0.00013699,2]
[336452751,1724832650694,-262.64109941,0.00013699,2]
[336452752,1724832650703,-500.0,0.00013699,2]
[336452753,1724832650714,-500.0,0.00013699,2]
[336452754,1724832650724,-500.0,0.00013699,2]
[336452755,1724832650734,-627.39290519,0.00013699,2]
[336452756,1724832650744,-500.0,0.00013871,2]
[336452757,1724832650754,-500.0,0.00013871,2]
[336452758,1724832650765,-500.0,0.00013871,2]
[336452759,1724832650776,-187.62993133,0.00013871,2]
[336452760,1724832650790,-5872.25478656,0.00013872,2]
[336452761,1724832650801,-150.112233,0.000139,2]
[336452762,1724832650816,-1114.59,0.00013972,2]
[336452763,1724832650826,-307.99,0.00013972,2]
[336452764,1724832650837,-500.0,0.00013972,2]
[336452765,1724832650848,-2211.21,0.00013972,2]
[336452766,1724832650860,-806.41,0.00013972,2]
[336452767,1724832650870,-812.71,0.00013972,2]
[336452768,1724832650882,-5829.57,0.00013972,2]
[336452769,1724832650891,-500.0,0.00013972,2]
[336452770,1724832650901,-534.72,0.00013972,2]
[336452771,1724832650913,-500.0,0.00013972,2]
[336452772,1724832650923,-500.0,0.00013972,2]
[336452773,1724832650934,-500.0,0.00013972,2]
[336452774,1724832650945,-500.0,0.00013972,2]
[336452775,1724832650956,-506.61,0.00013972,2]
[336452776,1724832650966,-1419.74,0.00013972,2]
[336452777,1724832650976,-500.0,0.00013972,2]
[336452778,1724832650987,-201.24,0.00013972,2]
[336452779,1724832650997,-847.13,0.00013972,2]
[336452780,1724832651007,-2536.43,0.00013972,2]
[336452781,1724832651017,-826.86,0.00013972,2]
[336452782,1724832651029,-2039.59,0.00013972,2]
[336452783,1724832651040,-500.0,0.00013972,2]
[336452784,1724832651051,-500.0,0.00013972,2]
[336452785,1724832651062,-236.11350432,0.00014,2]
[336452786,1724832651074,-324.0,0.0001405,2]
[336452787,1724832651083,-150.112233,0.000142,2]
[336452788,1724832651095,-1114.59,0.00014246,2]
[336452789,1724832651104,-269.72,0.00014246,2]
[336452790,1724832651115,-2211.21,0.00014246,2]
[336452791,1724832651125,-806.41,0.00014246,2]
[336452792,1724832651137,-812.71,0.00014246,2]
[336452793,1724832651151,-5829.57,0.00014246,2]
[336452794,1724832651162,-500.0,0.00014246,2]
[336452795,1724832651171,-534.72,0.00014246,2]
[336452796,1724832651182,-394.77,0.00014246,2]
[336452797,1724832651192,-600.84,0.00014246,2]
[336452798,1724832651201,-500.0,0.00014246,2]
[336452799,1724832651212,-506.61,0.00014246,2]
[336452800,1724832651223,-1419.74,0.00014246,2]
[336452801,1724832651232,-500.0,0.00014246,2]
[336452802,1724832651243,-847.13,0.00014246,2]
[336452803,1724832651254,-2536.43,0.00014246,2]
[336452804,1724832651263,-826.86,0.00014246,2]
[336452805,1724832651272,-2039.59,0.00014246,2]
[336452806,1724832651282,-500.0,0.00014246,2]
[336452807,1724832651291,-500.0,0.00014246,2]
[336452808,1724832651302,-158.333336,0.00014247,2]
[336452809,1724832651312,-631.249998,0.00014247,2]
[336452810,1724832651324,-1114.59,0.0001452,2]
[336452811,1724832651335,-2211.21,0.0001452,2]
[336452812,1724832651344,-806.41,0.0001452,2]
[336452813,1724832651355,-812.71,0.0001452,2]
[336452814,1724832651366,-5829.57,0.0001452,2]
[336452815,1724832651376,-500.0,0.0001452,2]
[336452816,1724832651386,-534.72,0.0001452,2]
[336452817,1724832651397,-500.0,0.0001452,2]
[336452818,1724832651409,-506.61,0.0001452,2]
[336452819,1724832651419,-1419.74,0.0001452,2]
[336452820,1724832651429,-500.0,0.0001452,2]
[336452821,1724832651438,-847.13,0.0001452,2]
[336452822,1724832651448,-2536.43,0.0001452,2]
[336452823,1724832651459,-826.86,0.0001452,2]
[336452824,1724832651469,-2039.59,0.0001452,2]
[336452825,1724832651480,-500.0,0.0001452,2]
[336452826,1724832651490,-1114.59,0.00014794,2]
[336452827,1724832651501,-2211.21,0.00014794,2]
[336452828,1724832651512,-806.41,0.00014794,2]
[336452829,1724832651522,-812.71,0.00014794,2]
[336452830,1724832651533,-5829.57,0.00014794,2]
[336452831,1724832651545,-155.97,0.00014794,2]
[336452832,1724832651556,-534.72,0.00014794,2]
[336452833,1724832651566,-500.0,0.00014794,2]
[336452834,1724832651576,-506.61,0.00014794,2]
[336452835,1724832651587,-1419.74,0.00014794,2]
[336452836,1724832651598,-210.48874845,0.00014794,2]
[336452837,1724832651609,-847.13,0.00014794,2]
[336452838,1724832651619,-2536.43,0.00014794,2]
[336452839,1724832651628,-826.86,0.00014794,2]
[336452840,1724832651638,-2039.59,0.00014794,2]
[336452841,1724832651647,-500.0,0.00014794,2]
[336452842,1724832651657,-150.112233,0.000148,2]
[336452843,1724832651666,-151.0,0.00014968,2]
[336452844,1724832651675,-252.163354,0.00014968,2]
[336452845,1724832651685,-252.163354,0.00014968,2]
[336452846,1724832651694,-376.671424,0.00014968,2]
[336452847,1724832651704,-376.671424,0.00014968,2]
[336452848,1724832651713,-773.211081,0.00014968,2]
[336452849,1724832651723,-773.211081,0.00014968,2]
[336452850,1724832651732,-20806.3048966,0.00015,2]
[336452851,1724832651742,-20806.3048966,0.00015,2]
[336452852,1724832651752,-1114.59,0.00015068,2]
[336452853,1724832651762,-2211.21,0.00015068,2]
[336452854,1724832651771,-806.41,0.00015068,2]
[336452855,1724832651780,-812.71,0.00015068,2]
[336452856,1724832651790,-5829.57,0.00015068,2]
[336452857,1724832651799,-534.72,0.00015068,2]
[336452858,1724832651812,-500.0,0.00015068,2]
[336452859,1724832651822,-506.61,0.00015068,2]
[336452860,1724832651832,-1419.74,0.00015068,2]
[336452861,1724832651842,-847.13,0.00015068,2]
[336452862,1724832651852,-2536.43,0.00015068,2]
[336452863,1724832651864,-826.86,0.00015068,2]
[336452864,1724832651873,-2039.59,0.00015068,2]
[336452865,1724832651884,-500.0,0.00015068,2]
[336452866,1724832651893,-5528.49874877,0.00015222,2]
[336452867,1724832651902,-301.110679,0.00015272,2]
[336452868,1724832651911,-301.110679,0.00015272,2]
[336452869,1724832651920,-165.9889,0.00015272,2]
[336452870,1724832651929,-165.9889,0.00015272,2]
[336452871,1724832651939,-503.582735,0.00015272,2]
[336452872,1724832651949,-503.582735,0.00015272,2]
[336452873,1724832651958,-151.0,0.00015272,2]
[336452874,1724832651966,-151.0,0.00015272,2]
[336452875,1724832651976,-1012.24206773,0.00015341,2]
[336452876,1724832651987,-1114.59,0.00015342,2]
[336452877,1724832651998,-2211.21,0.00015342,2]
[336452878,1724832652009,-806.41,0.00015342,2]
[336452879,1724832652019,-812.71,0.00015342,2]
[336452880,1724832652029,-5829.57,0.00015342,2]
[336452881,1724832652039,-534.72,0.00015342,2]
[336452882,1724832652048,-500.0,0.00015342,2]
[336452883,1724832652057,-506.61,0.00015342,2]
[336452884,1724832652066,-1419.74,0.00015342,2]
[336452885,1724832652076,-847.13,0.00015342,2]
[336452886,1724832652085,-2536.43,0.00015342,2]
[336452887,1724832652094,-826.86,0.00015342,2]
[336452888,1724832652103,-2039.59,0.00015342,2]
[336452889,1724832652113,-500.0,0.00015342,2]
[336452890,1724832652122,-150.112233,0.000154,2]
[336452891,1724832652132,-5528.49874877,0.00015549,2]
[336452892,1724832652141,-151.0,0.00015616,2]
[336452893,1724832652150,-151.0,0.00015616,2]
[336452894,1724832652160,-151.0,0.00015616,2]
[336452895,1724832652169,-3446.954249,0.00015616,2]
[336452896,1724832652178,-151.0,0.00015616,2]
[336452897,1724832652187,-3446.954249,0.00015616,2]
[336452898,1724832652196,-151.0,0.00015616,2]
[336452899,1724832652205,-151.0,0.00015616,2]
[336452900,1724832652216,-291.060103,0.00015616,2]
[336452901,1724832652228,-1114.59,0.00015616,2]
[336452902,1724832652237,-2211.21,0.00015616,2]
[336452903,1724832652246,-806.41,0.00015616,2]
[336452904,1724832652258,-812.71,0.00015616,2]
[336452905,1724832652269,-5829.57,0.00015616,2]
[336452906,1724832652278,-534.72,0.00015616,2]
[336452907,1724832652289,-500.0,0.00015616,2]
[336452908,1724832652300,-506.61,0.00015616,2]
[336452909,1724832652310,-1419.74,0.00015616,2]
[336452910,1724832652320,-847.13,0.00015616,2]
[336452911,1724832652331,-2536.43,0.00015616,2]
[336452912,1724832652342,-826.86,0.00015616,2]
[336452913,1724832652352,-2039.59,0.00015616,2]
[336452914,1724832652363,-500.0,0.00015616,2]
[336452915,1724832652374,-5528.49874877,0.00015684,2]
[336452916,1724832652383,-150.112233,0.000157,2]
[336452917,1724832652392,-1114.59,0.0001589,2]
[336452918,1724832652401,-151.0,0.0001589,2]
[336452919,1724832652410,-2211.21,0.0001589,2]
[336452920,1724832652420,-464.285289,0.0001589,2]
[336452921,1724832652430,-806.41,0.0001589,2]
[336452922,1724832652440,-464.285289,0.0001589,2]
[336452923,1724832652450,-151.0,0.0001589,2]
[336452924,1724832652460,-812.71,0.0001589,2]
[336452925,1724832652471,-5829.57,0.0001589,2]
[336452926,1724832652480,-303.158954,0.0001589,2]
[336452927,1724832652489,-729.308828,0.0001589,2]
[336452928,1724832652497,-303.158954,0.0001589,2]
[336452929,1724832652506,-729.308828,0.0001589,2]
[336452930,1724832652515,-918.016429,0.0001589,2]
[336452931,1724832652525,-534.72,0.0001589,2]
[336452932,1724832652534,-918.016429,0.0001589,2]
[336452933,1724832652544,-256.660901,0.0001589,2]
[336452934,1724832652554,-256.660901,0.0001589,2]
[336452935,1724832652564,-500.0,0.0001589,2]
[336452936,1724832652574,-506.61,0.0001589,2]
[336452937,1724832652584,-1419.74,0.0001589,2]
[336452938,1724832652593,-847.13,0.0001589,2]
[336452939,1724832652604,-2536.43,0.0001589,2]
[336452940,1724832652613,-826.86,0.0001589,2]
[336452941,1724832652622,-507.033528,0.0001589,2]
[336452942,1724832652631,-2039.59,0.0001589,2]
[336452943,1724832652640,-507.033528,0.0001589,2]
[336452944,1724832652650,-500.0,0.0001589,2]
[336452945,1724832652659,-1177.329661,0.0001589,2]
[336452946,1724832652668,-1177.329661,0.0001589,2]
[336452947,1724832652677,-5528.49874877,0.00015912,2]
[336452948,1724832652687,-151.0,0.00016164,2]
[336452949,1724832652697,-1008.785451,0.00016164,2]
[336452950,1724832652707,-1008.785451,0.00016164,2]
[336452951,1724832652719,-1114.59,0.00016164,2]
[336452952,1724832652729,-2211.21,0.00016164,2]
[336452953,1724832652739,-806.41,0.00016164,2]
[336452954,1724832652748,-812.71,0.00016164,2]
[336452955,1724832652757,-5829.57,0.00016164,2]
[336452956,1724832652766,-534.72,0.00016164,2]
[336452957,1724832652775,-500.0,0.00016164,2]
[336452958,1724832652785,-506.61,0.00016164,2]
[336452959,1724832652795,-1419.74,0.00016164,2]
[336452960,1724832652805,-847.13,0.00016164,2]
[336452961,1724832652817,-2536.43,0.00016164,2]
[336452962,1724832652826,-826.86,0.00016164,2]
[336452963,1724832652836,-2039.59,0.00016164,2]
[336452964,1724832652845,-500.0,0.00016164,2]
[336452965,1724832652855,-5528.49874877,0.00016409,2]
[336452966,1724832652865,-1114.59,0.00016438,2]
[336452967,1724832652874,-2211.21,0.00016438,2]
[336452968,1724832652886,-806.41,0.00016438,2]
[336452969,1724832652895,-812.71,0.00016438,2]
[336452970,1724832652904,-5829.57,0.00016438,2]
[336452971,1724832652913,-397.43486944,0.00016438,2]
[336452972,1724832653316,-500.0,0.00010958,2]
[336452973,1724832653326,-348.26,0.00011232,2]
[336452974,1724832653336,-500.0,0.00011273,2]
[336452975,1724832653346,-137.28513056,0.00016438,2]
[336452976,1724832653357,-500.0,0.00016438,2]
[336452977,1724832653368,-506.61,0.00016438,2]
[336452978,1724832653378,-381.25116093,0.00016438,2]
[336452979,1724832653422,-1038.48883907,0.00016438,2]
[336452980,1724832653432,-847.13,0.00016438,2]
[336452981,1724832653443,-2536.43,0.00016438,2]
[336452982,1724832653453,-826.86,0.00016438,2]
[336452983,1724832653465,-2039.59,0.00016438,2]
[336452984,1724832653476,-500.0,0.00016438,2]
[336452985,1724832653486,-5528.49874877,0.00016516,2]
[336452986,1724832653496,-150.112233,0.000166,2]
[336452987,1724832653505,-150.112233,0.000166,2]
[336452988,1724832653516,-1114.59,0.00016712,2]
[336452989,1724832653525,-806.41,0.00016712,2]
[336452990,1724832653536,-5829.57,0.00016712,2]
[336452991,1724832653547,-534.72,0.00016712,2]
[336452992,1724832653558,-500.0,0.00016712,2]
[336452993,1724832653567,-506.61,0.00016712,2]
[336452994,1724832653577,-1419.74,0.00016712,2]
[336452995,1724832653589,-847.13,0.00016712,2]
[336452996,1724832653599,-2536.43,0.00016712,2]
[336452997,1724832653609,-826.86,0.00016712,2]
[336452998,1724832653618,-2039.59,0.00016712,2]
[336452999,1724832653629,-500.0,0.00016712,2]
[336453000,1724832653638,-5528.49874877,0.00016913,2]
[336453001,1724832653648,-1114.59,0.00016986,2]
[336453002,1724832653657,-806.41,0.00016986,2]
[336453003,1724832653666,-5829.57,0.00016986,2]
[336453004,1724832653677,-534.72,0.00016986,2]
[336453005,1724832653686,-500.0,0.00016986,2]
[336453006,1724832653697,-506.61,0.00016986,2]
[336453007,1724832653707,-1419.74,0.00016986,2]
[336453008,1724832653719,-847.13,0.00016986,2]
[336453009,1724832653729,-2536.43,0.00016986,2]
[336453010,1724832653738,-826.86,0.00016986,2]
[336453011,1724832653747,-2039.59,0.00016986,2]
[336453012,1724832653757,-534.69,0.00016986,2]
[336453013,1724832653767,-5528.49874877,0.00016996,2]
[336453014,1724832653777,-1114.79173723,0.0001726,2]
[336453015,1724832653787,-806.53,0.0001726,2]
[336453016,1724832653796,-5829.69510991,0.0001726,2]
[336453017,1724832653807,-534.83,0.0001726,2]
[336453018,1724832653820,-493.714878,0.0001726,2]
[336453019,1724832653830,-493.714878,0.0001726,2]
[336453020,1724832653839,-151.0,0.0001726,2]
[336453021,1724832653848,-151.0,0.0001726,2]
[336453022,1724832653859,-243.942591,0.0001726,2]
[336453023,1724832653868,-165.046787,0.0001726,2]
[336453024,1724832653879,-243.942591,0.0001726,2]
[336453025,1724832653890,-165.046787,0.0001726,2]
[336453026,1724832653901,-572.604186,0.0001726,2]
[336453027,1724832653911,-572.604186,0.0001726,2]
[336453028,1724832653921,-205.37657277,0.0001726,2]
[336453029,1724832653931,-613.80047,0.0001726,2]
[336453030,1724832653941,-506.68,0.0001726,2]
[336453031,1724832653951,-613.80047,0.0001726,2]
[336453032,1724832653961,-279.055984,0.0001726,2]
[336453033,1724832653971,-279.055984,0.0001726,2]
[336453034,1724832653983,-1419.76420164,0.0001726,2]
[336453035,1724832653993,-847.32,0.0001726,2]
[336453036,1724832654004,-2536.58591775,0.0001726,2]
[336453037,1724832654013,-826.99,0.0001726,2]
[336453038,1724832654025,-2039.74262362,0.0001726,2]
[336453039,1724832654035,-2968.69231271,0.00017301,2]
[336453040,1724832654123,-2559.80643606,0.00017301,2]
[336453041,1724832654135,-150.112233,0.000175,2]
[336453042,1724832654145,-693.09967729,0.00017552,2]
[336453043,1724832654340,-261.85733285,0.00010958,2]
[336453044,1724832654353,-238.14266715,0.00010958,2]
[336453045,1724832654363,-500.0,0.00010958,2]
[336453046,1724832654372,-500.0,0.00010958,2]
[336453047,1724832654384,-500.0,0.00011232,2]
[336453048,1724832654393,-500.0,0.00011232,2]
[336453049,1724832654406,-164.21,0.00011506,2]
[336453050,1724832654420,-500.0,0.00011506,2]
[336453051,1724832654436,-4835.39907148,0.00017552,2]
[336453052,1724832654450,-150.112233,0.000178,2]
[336453053,1724832654462,-2129.48158209,0.00017932,2]
[336453054,1724832654476,-5528.49874877,0.0001806,2]
[336453055,1724832654489,-5528.49874877,0.00018347,2]
[336453056,1724832654504,-5528.49874877,0.00018397,2]
[336453057,1724832654520,-150.112233,0.000184,2]
[336453058,1724832654534,-500.0,0.00018453,2]
[336453059,1724832654548,-1700.0,0.00018519,2]
[336453060,1724832654564,-2000.0,0.00018531,2]
[336453061,1724832654577,-500.0,0.00018533,2]
[336453062,1724832654590,-500.0,0.00018539,2]
[336453063,1724832654604,-2000.0,0.00018543,2]
[336453064,1724832654617,-700.0,0.00018563,2]
[336453065,1724832654630,-700.0,0.00018575,2]
[336453066,1724832654643,-500.0,0.00018675,2]
[336453067,1724832654656,-155.21909536,0.00018678,2]
[336453068,1724832654667,-1700.0,0.00018763,2]
[336453069,1724832654680,-3216.003,0.00018819,2]
[336453070,1724832654693,-150.0,0.00018819,2]
[336453071,1724832654707,-300.0,0.00018819,2]
[336453072,1724832654724,-377.315765,0.00018819,2]
[336453073,1724832654736,-377.315765,0.00018819,2]
[336453074,1724832654750,-151.0,0.00018819,2]
[336453075,1724832654765,-151.0,0.00018819,2]
[336453076,1724832654778,-1675.026934,0.00018819,2]
[336453077,1724832654792,-1675.026934,0.00018819,2]
[336453078,1724832654804,-151.0,0.00018819,2]
[336453079,1724832654820,-151.0,0.00018819,2]
[336453080,1724832654833,-967.547218,0.00018819,2]
[336453081,1724832654845,-967.547218,0.00018819,2]
[336453082,1724832654860,-5528.49874877,0.00018822,2]
[336453083,1724832654873,-700.0,0.00018834,2]
[336453084,1724832654884,-1400.0,0.0001886,2]
[336453085,1724832654897,-854.174823,0.00018904,2]
[336453086,1724832654909,-150.112233,0.00019,2]
[336453087,1724832654923,-500.0,0.0001903,2]
[336453088,1724832654935,-700.0,0.00019036,2]
[336453089,1724832654948,-5528.49874877,0.00019069,2]
[336453090,1724832654958,-150.0,0.00019112,2]
[336453091,1724832654969,-150.0,0.00019112,2]
[336453092,1724832654981,-522.0,0.00019112,2]
[336453093,1724832654995,-1700.0,0.00019133,2]
[336453094,1724832655006,-150.0,0.00019148,2]
[336453095,1724832655018,-700.0,0.00019173,2]
[336453096,1724832655031,-169.732904,0.00019178,2]
[336453097,1724832655042,-187.92707,0.00019178,2]
[336453098,1724832655054,-251.0,0.00019178,2]
[336453099,1724832655066,-241.82106656,0.0001918,2]
[336453100,1724832655080,-241.82106656,0.0001918,2]
[336453101,1724832655092,-241.82106656,0.0001918,2]
[336453102,1724832655104,-241.82106656,0.0001918,2]
[336453103,1724832655116,-241.82106656,0.0001918,2]
[336453104,1724832655130,-241.82106656,0.0001918,2]
[336453105,1724832655142,-241.82106656,0.0001918,2]
[336453106,1724832655155,-241.82106656,0.0001918,2]
[336453107,1724832655167,-241.82106656,0.0001918,2]
[336453108,1724832655179,-241.82106656,0.0001918,2]
[336453109,1724832655191,-241.82106656,0.0001918,2]
[336453110,1724832655206,-241.82106656,0.0001918,2]
[336453111,1724832655219,-241.82106656,0.0001918,2]
[336453112,1724832655231,-241.82106656,0.0001918,2]
[336453113,1724832655245,-241.82106656,0.0001918,2]
[336453114,1724832655256,-241.82106656,0.0001918,2]
[336453115,1724832655269,-241.82106656,0.0001918,2]
[336453116,1724832655281,-241.82106656,0.0001918,2]
[336453117,1724832655291,-241.82106656,0.0001918,2]
[336453118,1724832655303,-242.32,0.0001918,2]
[336453119,1724832655315,-153.38504374,0.0001918,2]
[336453120,1724832655327,-153.38504374,0.0001918,2]
[336453121,1724832655338,-153.38504374,0.0001918,2]
[336453122,1724832655350,-153.38504374,0.0001918,2]
[336453123,1724832655362,-153.38504374,0.0001918,2]
[336453124,1724832655374,-153.38504374,0.0001918,2]
[336453125,1724832655385,-153.38504374,0.0001918,2]
[336453126,1724832655397,-153.38504374,0.0001918,2]
[336453127,1724832655408,-153.38504374,0.0001918,2]
[336453128,1724832655418,-153.38504374,0.0001918,2]
[336453129,1724832655428,-153.38504374,0.0001918,2]
[336453130,1724832655437,-153.38504374,0.0001918,2]
[336453131,1724832655445,-153.38504374,0.0001918,2]
[336453132,1724832655455,-153.38504374,0.0001918,2]
[336453133,1724832655464,-153.38504374,0.0001918,2]
[336453134,1724832655475,-153.38504374,0.0001918,2]
[336453135,1724832655485,-153.38504374,0.0001918,2]
[336453136,1724832655494,-153.38504374,0.0001918,2]
[336453137,1724832655505,-153.38504374,0.0001918,2]
[336453138,1724832655515,-153.88,0.0001918,2]
[336453139,1724832655526,-500.0,0.00019184,2]
[336453140,1724832655536,-1700.0,0.00019203,2]
[336453141,1724832655548,-5528.49874877,0.00019231,2]
[336453142,1724832655558,-150.112233,0.000193,2]
[336453143,1724832655569,-500.0,0.00019301,2]
[336453144,1724832655581,-1700.0,0.00019312,2]
[336453145,1724832655591,-500.0,0.0001934,2]
[336453146,1724832655601,-500.0,0.00019407,2]
[336453147,1724832655612,-150.0,0.00019409,2]
[336453148,1724832655623,-5528.49874877,0.00019488,2]
[336453149,1724832655633,-1400.0,0.00019507,2]
[336453150,1724832655642,-150.0,0.00019524,2]
[336453151,1724832655652,-500.0,0.00019575,2]
[336453152,1724832655661,-700.0,0.00019581,2]
[336453153,1724832655671,-2000.0,0.00019636,2]
[336453154,1724832655681,-2000.0,0.00019715,2]
[336453155,1724832655690,-500.0,0.00019829,2]
[336453156,1724832655699,-150.0,0.00019861,2]